bitfinex/quotes_SOLUSD_20240822
["timestamp","ask_amount","ask_price","bid_price","bid_amount"]
[1724315415944,6.9531,143.82,143.81,15.416]
[1724315416155,6.9538,143.81,143.76,21.8511]
[1724315416328,10.45,143.82,143.76,21.8511]
[1724315416643,6.9541,143.8,143.76,21.8511]
[1724315417219,6.9547,143.79,143.76,21.8511]
[1724315417426,10.45,143.8,143.76,21.8511]
[1724315417931,6.9547,143.79,143.76,21.8511]
[1724315418836,6.9551,143.78,143.76,21.8511]
[1724315419133,6.9555,143.77,143.76,15.6819]
[1724315419335,10.45,143.78,143.76,15.6819]
[1724315419336,17.4051,143.78,143.76,15.6819]
[1724315420823,6.9547,143.79,143.76,15.6819]
[1724315421653,17.4041,143.8,143.76,15.6819]
[1724315422564,6.9548,143.79,143.76,15.6819]
[1724315422768,10.45,143.82,143.77,1.39104312]
[1724315423069,10.45,143.83,143.76,15.6819]
[1724315423239,6.9545,143.8,143.76,15.6819]
[1724315423445,10.45,143.81,143.76,15.6819]
[1724315423638,6.9554,143.78,143.76,15.6819]
[1724315424053,6.9555,143.77,143.76,15.6819]
[1724315424356,6.9561,143.76,143.73,22.1983]
[1724315424951,6.9565,143.75,143.73,22.1983]
[1724315425157,6.957,143.74,143.73,15.9717]
[1724315428059,6.957,143.74,143.69,22.6128]
[1724315430385,26.88582785,143.74,143.69,22.6128]
[1724315430565,6.9589,143.71,143.69,16.2589]
[1724315432096,6.9589,143.71,143.65,22.0149]
[1724315433267,6.9589,143.71,143.66,1.39189269]
[1724315433472,6.9589,143.71,143.65,22.0149]
[1724315434796,6.959,143.7,143.65,22.0149]
[1724315435392,6.9594,143.69,143.65,22.0149]
[1724315435561,6.9599,143.68,143.65,22.0149]
[1724315435992,7.77532785,143.69,143.65,22.0149]
[1724315436167,6.9595,143.69,143.65,22.0149]
[1724315438400,6.9599,143.68,143.65,22.0149]
[1724315438807,6.9596,143.69,143.65,22.0149]
[1724315441909,6.9599,143.68,143.65,22.0149]
[1724315442106,7.77622785,143.67,143.61,40.3325]
[1724315443284,33.03,143.68,143.61,40.3325]
[1724315443483,33.03,143.68,143.62,1.3921973]
[1724315443977,33.03,143.68,143.61,40.3325]
[1724315444387,6.9607,143.67,143.62,1.39220202]
[1724315445322,6.9607,143.67,143.61,33.3694]
[1724315445495,6.9607,143.67,143.62,1.39231617]
[1724315447707,6.9607,143.67,143.61,40.3326]
[1724315448113,6.9607,143.67,143.61,33.3694]
[1724315448319,7.77652785,143.67,143.61,33.3694]
[1724315448496,10.44,143.66,143.61,33.3694]
[1724315450401,10.44,143.66,143.62,1.39234196]
[1724315450809,10.44,143.66,143.61,33.3694]
[1724315451110,10.44,143.66,143.61,40.3325]
[1724315453723,10.44,143.67,143.62,1.39220011]
[1724315454598,6.9596,143.69,143.62,1.39220011]
[1724315454815,6.9596,143.69,143.62,45.0]
[1724315455005,10.44,143.7,143.63,24.3674]
[1724315455299,17.3992,143.7,143.63,24.3674]
[1724315455922,6.9585,143.71,143.64,53.35339174]
[1724315456614,6.9574,143.73,143.66,6.9607]
[1724315456817,10.44,143.72,143.67,1.39166134]
[1724315457012,10.44,143.72,143.66,6.9607]
[1724315457334,17.398,143.72,143.65,47.0982]
[1724315459301,10.44,143.7,143.65,22.7347]
[1724315459827,17.3989,143.7,143.65,22.7347]
[1724315460212,10.44,143.68,143.65,22.7347]
[1724315460926,10.44,143.66,143.65,16.28]
[1724315465911,10.44,143.66,143.62,24.3689]
[1724315465912,10.44,143.66,143.62,16.5363]
[1724315466117,10.44,143.66,143.62,17.92860487]
[1724315466718,10.44,143.66,143.62,17.92859101]
[1724315472819,10.44,143.66,143.63,1.39222723]
[1724315474442,10.44,143.66,143.62,16.5363]
[1724315477356,10.44,143.66,143.63,1.39223075]
[1724315478661,10.44,143.66,143.62,16.5363]
[1724315479156,10.44,143.66,143.62,17.92854339]
[1724315479758,10.44,143.66,143.62,16.5363]
[1724315480269,17.4009,143.66,143.62,16.5363]
[1724315480435,10.44,143.66,143.62,16.5363]
[1724315482654,10.44,143.66,143.62,17.92861868]
[1724315483349,24.66709556,143.71,143.62,17.92861868]
[1724315483646,10.44,143.66,143.62,17.92861868]
[1724315487236,10.44,143.66,143.62,16.5363]
[1724315487438,10.44,143.66,143.63,1.39219107]
[1724315489240,10.44,143.68,143.63,1.39219107]
[1724315489966,17.3999,143.68,143.63,1.39219107]
[1724315491134,17.3999,143.68,143.62,23.4989]
[1724315491556,17.3999,143.68,143.63,1.39210612]
[1724315493844,10.44,143.65,143.54,2.63075557]
[1724315494045,6.9629,143.62,143.54,6.9663]
[1724315494239,10.44,143.6,143.54,6.9663]
[1724315494451,3.5272,143.66,143.55,1.39280886]
[1724315494652,3.5272,143.66,143.54,30.44]
[1724315494653,10.44,143.64,143.56,37.4137]
[1724315495441,10.44,143.64,143.57,6.9648]
[1724315495852,10.44,143.64,143.58,45.0]
[1724315496371,10.44,143.64,143.57,6.9648]
[1724315496372,17.4021,143.64,143.57,6.9648]
[1724315496550,6.9624,143.63,143.56,24.3793]
[1724315496751,17.4019,143.64,143.56,24.3793]
[1724315497678,17.4019,143.64,143.57,51.9651]
[1724315498577,17.4019,143.64,143.58,1.39254038]
[1724315498753,10.44,143.64,143.58,6.9647]
[1724315498942,17.4019,143.64,143.59,45.0]
[1724315499146,17.4019,143.64,143.57,45.0]
[1724315499562,10.44,143.62,143.57,45.0]
[1724315502178,17.4029,143.62,143.57,45.0]
[1724315502478,10.44,143.62,143.57,45.0]
[1724315504872,10.44,143.62,143.57,51.9649]
[1724315505869,10.44,143.62,143.57,45.0]
[1724315511477,17.4028,143.62,143.57,45.0]
[1724315514206,17.4028,143.62,143.56,24.3792]
[1724315514610,17.4028,143.62,143.57,1.39268393]
[1724315514907,17.4028,143.62,143.56,24.3792]
[1724315515707,17.4028,143.62,143.56,17.4137]
[1724315515910,10.44,143.6,143.55,7.09149]
[1724315516212,10.44,143.6,143.56,45.0]
[1724315516791,10.44,143.58,143.54,6.9665]
[1724315517003,10.44,143.58,143.55,45.0]
[1724315518079,5.8742,143.63,143.56,1.39293973]
[1724315518304,10.44,143.63,143.57,6.965]
[1724315518610,17.4024,143.63,143.58,1.39255404]
[1724315522513,17.4024,143.63,143.57,6.965]
[1724315524715,6.9624,143.63,143.57,6.965]
[1724315524923,10.44,143.62,143.58,1.39255987]
[1724315527421,10.44,143.62,143.57,6.965]
[1724315528810,10.44,143.62,143.58,1.39256572]
[1724315530218,24.66815066,143.67,143.59,1.39256455]
[1724315530419,10.44,143.65,143.6,6.9637]
[1724315530617,10.44,143.65,143.61,1.39229707]
[1724315532519,10.44,143.65,143.6,51.9637]
[1724315538749,10.44,143.65,143.6,45.0]
[1724315538942,17.4014,143.65,143.59,17.4104]
[1724315539943,10.44,143.63,143.58,6.9646]
[1724315540331,10.44,143.63,143.59,45.0]
[1724315542349,10.44,143.63,143.58,6.9646]
[1724315543358,10.44,143.63,143.57,22.19079]
[1724315543545,10.44,143.63,143.58,45.0]
[1724315543938,17.4023,143.63,143.58,45.0]
[1724315544150,17.4023,143.63,143.57,22.0653]
[1724315545624,10.44,143.61,143.57,15.1003]
[1724315546241,10.44,143.61,143.56,24.3787]
[1724315546564,17.4033,143.61,143.55,6.9661]
[1724315546760,17.4033,143.61,143.54,6.9665]
[1724315546761,10.44,143.59,143.54,6.9665]
[1724315550056,10.44,143.59,143.53,39.5206]
[1724315550264,10.44,143.57,143.53,15.1367]
[1724315550441,12.18151769,143.57,143.51,6.9679]
[1724315550761,10.44,143.55,143.5,39.7577]
[1724315554654,10.44,143.55,143.51,6.9681]
[1724315554858,5.8742,143.59,143.52,1.39329074]
[1724315555061,10.44,143.57,143.52,8.36089074]
[1724315555568,10.44,143.57,143.52,1.39329074]
[1724315555944,10.44,143.57,143.52,46.39329074]
[1724315560686,10.44,143.57,143.52,45.0]
[1724315562963,6.9647,143.58,143.52,45.0]
[1724315563267,10.44,143.57,143.52,45.0]
[1724315563991,10.44,143.57,143.52,51.9676]
[1724315564185,23.2786,143.59,143.52,62.419]
[1724315564686,7.26445417,143.62,143.53,6.1665]
[1724315564875,7.26445417,143.62,143.54,65.25098]
[1724315564876,17.70445417,143.62,143.54,65.25098]
[1724315565085,17.4031,143.62,143.56,6.9656]
[1724315565666,17.4031,143.62,143.57,1.3927109]
[1724315566770,17.4031,143.62,143.56,6.9656]
[1724315569862,6.9625,143.63,143.57,6.9648]
[1724315570094,10.44,143.64,143.58,8.35703523]
[1724315570294,10.44,143.64,143.58,6.9643]
[1724315574287,17.4019,143.64,143.58,6.9643]
[1724315574483,10.44,143.62,143.57,24.3777]
[1724315574984,1.74078538,143.65,143.58,6.2613]
[1724315575187,6.4901,143.71,143.6,6.9634]
[1724315575188,6.9608,143.67,143.6,6.9634]
[1724315575502,17.4008,143.67,143.61,1.39241944]
[1724315575702,6.961,143.66,143.61,1.39241944]
[1724315575900,6.9605,143.67,143.61,8.35541944]
[1724315576078,17.4005,143.67,143.61,8.35541944]
[1724315577701,10.44,143.67,143.61,25.76361944]
[1724315579710,10.44,143.67,143.61,24.3712]
[1724315580201,10.44,143.67,143.62,8.35495883]
[1724315580782,10.44,143.67,143.62,6.9627]
[1724315582104,10.44,143.67,143.61,24.3713]
[1724315583404,10.44,143.65,143.61,17.4082]
[1724315583705,10.44,143.65,143.61,18.80058148]
[1724315585508,10.44,143.67,143.61,25.76378148]
[1724315585715,6.9595,143.69,143.62,51.9626]
[1724315585879,17.3999,143.68,143.62,51.9626]
[1724315586208,54.1243,143.71,143.62,51.9626]
[1724315586209,10.44,143.66,143.62,45.0]
[1724315586799,10.44,143.66,143.61,24.3713]
[1724315587908,10.44,143.64,143.6,16.3604]
[1724315588920,10.44,143.62,143.6,16.3604]
[1724315590429,17.4028,143.62,143.56,15.8092]
[1724315590633,10.44,143.6,143.56,15.8092]
[1724315591630,17.4038,143.6,143.56,15.8092]
[1724315591932,10.44,143.6,143.56,15.8092]
[1724315593530,10.44,143.6,143.56,17.20208926]
[1724315594026,17.4028,143.62,143.56,24.16778926]
[1724315594917,6.9623,143.63,143.56,24.16778926]
[1724315595108,17.4023,143.63,143.57,51.9651]
[1724315595428,17.4023,143.63,143.58,1.39263572]
[1724315596007,17.4011,143.66,143.59,6.9638]
[1724315596205,10.44,143.66,143.6,46.39232609]
[1724315596409,10.44,143.66,143.61,23.77632074]
[1724315596642,17.4,143.68,143.61,23.77632074]
[1724315597434,17.4,143.68,143.62,45.0]
[1724315597816,6.96,143.68,143.62,45.0]
[1724315599406,10.44,143.67,143.62,45.0]
[1724315599617,17.4004,143.67,143.62,45.0]
[1724315599830,10.44,143.67,143.63,1.39221147]
[1724315600319,6.9597,143.69,143.63,1.39221147]
[1724315600519,30.44,143.68,143.63,1.39221147]
[1724315601325,28.98263534,143.72,143.63,1.39221147]
[1724315601540,10.44,143.68,143.63,1.39221147]
[1724315603543,7.25340783,143.74,143.64,46.9065]
[1724315603712,10.44,143.71,143.65,45.0]
[1724315604214,17.3985,143.71,143.65,45.0]
[1724315605741,10.44,143.69,143.64,47.03199]
[1724315606036,10.44,143.69,143.64,39.9448]
[1724315606419,17.3995,143.69,143.64,22.541]
[1724315606614,6.9595,143.69,143.64,22.541]
[1724315606812,10.44,143.67,143.64,22.541]
[1724315609818,10.44,143.67,143.64,23.93307786]
[1724315610347,10.44,143.67,143.64,22.541]
[1724315615149,10.44,143.67,143.65,1.39208687]
[1724315617025,17.3996,143.69,143.65,1.39208687]
[1724315617236,10.44,143.7,143.65,1.39208687]
[1724315617436,6.9589,143.7,143.65,1.39208687]
[1724315619473,10.44,143.66,143.45,52.05505208]
[1724315619677,10.44,143.6,143.56,1.39242568]
[1724315619964,17.4039,143.6,143.54,16.2391]
[1724315620757,20.0,143.65,143.55,1.39284543]
[1724315620966,10.44,143.63,143.55,1.39284543]
[1724315622059,6.9629,143.62,143.55,8.35894543]
[1724315622373,6.9629,143.62,143.56,45.12549]
[1724315622545,6.9629,143.62,143.57,1.39262656]
[1724315622742,6.9629,143.62,143.58,1.39263303]
[1724315623555,6.9623,143.63,143.56,72.09079]
[1724315623754,17.4019,143.64,143.57,7.09069]
[1724315623939,17.4019,143.64,143.58,45.12549]
[1724315624378,6.9625,143.63,143.58,45.12549]
[1724315624670,17.4028,143.62,143.57,45.12549]
[1724315624848,17.4028,143.62,143.57,45.0]
[1724315625051,1.74078289,143.66,143.54,16.2391]
[1724315625052,10.44,143.6,143.54,16.2391]
[1724315625257,10.44,143.6,143.55,20.0]
[1724315625582,10.44,143.6,143.54,16.2391]
[1724315626145,10.44,143.6,143.55,6.9662]
[1724315626353,6.9633,143.61,143.55,6.9662]
[1724315626890,6.9633,143.61,143.56,45.0]
[1724315627678,17.4029,143.62,143.57,1.39273383]
[1724315628575,17.4029,143.62,143.56,51.9656]
[1724315630179,10.44,143.65,143.57,6.9649]
[1724315630358,27.26155933,143.67,143.59,6.9641]
[1724315630561,10.44,143.66,143.6,1.39240228]
[1724315630752,6.961,143.66,143.61,1.39236572]
[1724315631554,32.90730547,143.69,143.61,1.39236572]
[1724315631555,6.96,143.68,143.61,1.39236572]
[1724315632275,6.96,143.68,143.61,18.79516572]
[1724315632476,17.3958,143.72,143.63,6.9619]
[1724315632477,6.9591,143.7,143.63,6.9619]
[1724315632653,6.9591,143.7,143.64,1.39199415]
[1724315632862,6.9591,143.7,143.65,1.39194061]
[1724315633164,35.75170547,143.73,143.65,1.39194061]
[1724315633668,20.0,143.72,143.65,1.39194061]
[1724315634066,6.9586,143.71,143.65,1.39194061]
[1724315634267,6.9586,143.71,143.64,51.9618]
[1724315635564,21.73986012,143.72,143.64,45.0]
[1724315635765,6.9589,143.7,143.63,51.9622]
[1724315635988,6.9589,143.7,143.64,0.12549]
[1724315636287,6.9589,143.7,143.64,0.25098]
[1724315637697,6.9595,143.69,143.63,45.0]
[1724315639994,1.74009467,143.68,143.63,45.0]
[1724315640177,33.0395,143.69,143.62,6.9627]
[1724315641005,1.74019328,143.68,143.6,15.1824]
[1724315641300,1.74019328,143.68,143.61,45.25098]
[1724315641604,8.70009328,143.68,143.61,52.21418]
[1724315642895,33.0404,143.67,143.61,45.25098]
[1724315643090,33.0404,143.67,143.61,45.0]
[1724315643286,12.1058,143.66,143.61,45.0]
[1724315643487,12.1058,143.66,143.52,20.0]
[1724315643488,26.08,143.63,143.52,20.0]
[1724315643676,26.08,143.63,143.54,6.9663]
[1724315643884,26.08,143.63,143.55,6.966]
[1724315644077,33.0427,143.63,143.55,6.966]
[1724315644405,33.0427,143.63,143.56,6.9656]
[1724315644611,6.962,143.64,143.57,6.9651]
[1724315645090,6.962,143.64,143.58,45.25098]
[1724315646509,6.962,143.64,143.58,52.21568]
[1724315647583,6.9615,143.65,143.58,52.21568]
[1724315647800,6.9609,143.66,143.59,8.35665687]
[1724315648010,6.9609,143.66,143.6,45.0]
[1724315648207,6.9609,143.66,143.61,1.39234756]
[1724315648414,6.9604,143.67,143.61,1.39234756]
[1724315648724,6.9604,143.67,143.6,51.9635]
[1724315651398,27.82029497,143.69,143.6,51.9635]
[1724315651399,6.9609,143.66,143.6,51.9635]
[1724315652523,6.9605,143.67,143.61,1.39227253]
[1724315654130,6.9605,143.67,143.6,51.9635]
[1724315656127,6.9605,143.67,143.61,1.392237]
[1724315656812,6.9605,143.67,143.6,51.9635]
[1724315657135,6.9605,143.67,143.61,8.35533813]
[1724315657317,6.9605,143.67,143.62,16.0758]
[1724315657505,1.7402772,143.67,143.6,16.0758]
[1724315657712,10.44,143.63,143.4,20.0]
[1724315657920,6.0417,143.66,143.31,73.82105974]
[1724315657921,21.86655928,143.62,143.5,20.0]
[1724315658230,21.86655928,143.62,143.49,43.9149]
[1724315658231,6.9653,143.57,143.49,33.4847]
[1724315658829,6.966,143.56,143.49,33.4847]
[1724315659227,6.9662,143.55,143.49,33.4847]
[1724315660336,6.9662,143.55,143.49,16.0758]
[1724315660337,10.44,143.55,143.49,16.0758]
[1724315660634,27.88163852,143.56,143.49,16.0758]
[1724315660813,6.967,143.54,143.49,16.0758]
[1724315661503,6.6189,143.54,143.49,16.0758]
[1724315662929,6.6189,143.54,143.47,6.408]
[1724315662930,6.9686,143.5,143.47,6.408]
[1724315663131,1.74184375,143.53,143.45,17.4795247]
[1724315663132,6.9692,143.49,143.45,17.4795247]
[1724315663345,6.9696,143.48,143.45,17.4795247]
[1724315664661,33.1092,143.49,143.45,17.4795247]
[1724315665151,6.9705,143.46,143.45,0.8434247]
[1724315665523,8.71342532,143.46,143.45,0.8434247]
[1724315669346,1.74292532,143.46,143.45,0.8434247]
[1724315669542,33.1104,143.47,143.45,0.8434247]
[1724315669743,1.74301126,143.46,143.45,0.8434247]
[1724315669950,33.1104,143.47,143.45,0.8434247]
[1724315670444,33.1096,143.49,143.45,0.8434247]
[1724315670626,26.9698,143.48,143.45,0.8434247]
[1724315670945,6.9698,143.48,143.45,0.8434247]
[1724315671325,8.71246503,143.48,143.45,0.8434247]
[1724315673425,1.74266503,143.48,143.45,0.8434247]
[1724315674324,17.4204,143.51,143.45,0.8434247]
[1724315674325,8.71126703,143.5,143.45,0.8434247]
[1724315674624,27.8826035,143.51,143.45,16.2780247]
[1724315675719,8.71144856,143.5,143.45,16.2780247]
[1724315675944,6.9692,143.49,143.45,16.2780247]
[1724315676133,1.74260383,143.48,143.45,16.2780247]
[1724315676522,6.9692,143.49,143.45,16.2780247]
[1724315676724,8.71130682,143.5,143.45,16.2780247]
[1724315676951,6.9687,143.5,143.45,16.2780247]
[1724315677255,1.74248493,143.49,143.45,16.2780247]
[1724315678863,8.71168493,143.49,143.45,16.2780247]
[1724315681466,6.9692,143.49,143.45,16.2780247]
[1724315692572,17.4292,143.49,143.45,16.2780247]
[1724315693775,8.71220893,143.48,143.45,16.2780247]
[1724315694705,10.46,143.47,143.45,16.2780247]
[1724315695505,1.74276751,143.47,143.45,16.2780247]
[1724315695691,12.20276751,143.47,143.45,16.2780247]
[1724315696003,19.17286751,143.47,143.45,16.2780247]
[1724315698105,10.46,143.47,143.45,16.2780247]
[1724315698289,6.9697,143.48,143.45,16.2780247]
[1724315698682,17.4292,143.49,143.45,16.2780247]
[1724315699101,10.46,143.49,143.45,16.2780247]
[1724315700183,17.4291,143.49,143.45,16.2780247]
[1724315704312,17.4283,143.51,143.45,17.67209973]
[1724315704610,6.9683,143.51,143.45,17.67209973]
[1724315704817,17.4279,143.52,143.45,24.64279973]
[1724315704989,26.9681,143.51,143.45,24.64279973]
[1724315705415,26.9681,143.51,143.45,17.67209973]
[1724315705729,26.9681,143.51,143.45,16.2780247]
[1724315706306,28.71050288,143.51,143.45,16.2780247]
[1724315707724,26.9681,143.51,143.45,23.2490247]
[1724315708506,26.9681,143.51,143.45,16.2780247]
[1724315709213,37.4281,143.51,143.45,16.2780247]
[1724315709716,30.46,143.51,143.45,23.2488247]
[1724315709928,10.46,143.51,143.45,23.2488247]
[1724315710595,12.20225894,143.51,143.45,23.2488247]
[1724315714212,12.20225894,143.51,143.45,16.2780247]
[1724315714409,12.20225894,143.51,143.45,23.2488247]
[1724315716602,19.17045894,143.51,143.45,16.2780247]
[1724315716926,6.9687,143.5,143.45,16.2780247]
[1724315717132,12.20250002,143.49,143.45,16.2780247]
[1724315717308,1.74260694,143.53,143.45,16.2780247]
[1724315717631,6.9678,143.52,143.45,23.2487247]
[1724315718014,1.74226295,143.51,143.45,23.2487247]
[1724315725123,8.71036295,143.51,143.45,23.2487247]
[1724315728935,1.74226722,143.52,143.46,6.9702]
[1724315729240,26.9675,143.53,143.46,6.9704]
[1724315732236,6.9675,143.53,143.47,8.36373092]
[1724315733417,8.7097956,143.52,143.46,6.9705]
[1724315733618,1.7420956,143.52,143.46,6.9705]
[1724315733832,1.74209864,143.52,143.46,6.9705]
[1724315739451,1.74209864,143.52,143.46,17.4305]
[1724315742151,8.70979864,143.52,143.46,17.4305]
[1724315742637,8.70979864,143.52,143.45,16.4035147]
[1724315742841,6.9683,143.51,143.45,23.2487247]
[1724315743053,1.74233693,143.5,143.45,23.2487247]
[1724315743741,1.74233693,143.5,143.45,16.2780247]
[1724315745124,8.71062091,143.51,143.45,16.2780247]
[1724315745322,1.74232091,143.51,143.45,16.2780247]
[1724315745935,10.46,143.5,143.45,16.2780247]
[1724315746132,1.74252803,143.49,143.45,16.2780247]
[1724315747134,8.71162803,143.49,143.45,16.2780247]
[1724315747635,10.46,143.52,143.45,16.2780247]
[1724315747832,8.71072574,143.51,143.45,16.2780247]
[1724315752240,6.9687,143.5,143.45,16.2780247]
[1724315753057,1.74237426,143.49,143.45,16.2780247]
[1724315753259,8.71157426,143.49,143.45,16.2780247]
[1724315754656,6.9688,143.5,143.45,16.2780247]
[1724315754956,6.9688,143.5,143.46,1.3938862]
[1724315755560,6.9688,143.5,143.45,16.2780247]
[1724315756631,6.9683,143.51,143.45,16.2780247]
[1724315758855,6.9683,143.51,143.45,23.2489247]
[1724315759060,6.9683,143.51,143.45,16.2780247]
[1724315759961,19.16284863,143.51,143.45,0.8434247]
[1724315760262,6.9691,143.49,143.45,0.8434247]
[1724315760559,8.71174179,143.49,143.45,0.8434247]
[1724315761647,1.74264166,143.48,143.45,0.8434247]
[1724315762372,6.9691,143.49,143.45,0.8434247]
[1724315763361,6.9688,143.5,143.45,0.8434247]
[1724315766766,6.9688,143.5,143.46,10.46]
[1724315766953,6.9683,143.51,143.46,10.46]
[1724315767351,6.9683,143.51,143.45,0.8434247]
[1724315767554,8.71064019,143.51,143.45,0.8434247]
[1724315768680,6.9683,143.51,143.45,0.8434247]
[1724315768871,6.9683,143.51,143.45,7.8143247]
[1724315772097,6.9683,143.51,143.46,10.46]
[1724315772381,8.710634,143.51,143.45,7.8143247]
[1724315773282,6.9683,143.51,143.45,7.8143247]
[1724315773999,6.9678,143.52,143.46,6.9704]
[1724315774555,9.02712386,143.56,143.48,22.1589]
[1724315774789,6.966,143.56,143.49,45.0]
[1724315775086,1.74174786,143.55,143.5,6.9685]
[1724315775292,1.74176912,143.56,143.5,6.9685]
[1724315775590,8.70776912,143.56,143.49,45.0]
[1724315776193,6.966,143.56,143.49,45.0]
[1724315777070,1.74176805,143.55,143.49,45.0]
[1724315777382,1.74176805,143.55,143.5,6.9685]
[1724315778764,8.70796805,143.55,143.49,45.0]
[1724315779259,8.70796805,143.55,143.48,29.1284]
[1724315780472,1.74194039,143.55,143.49,6.9688]
[1724315781072,17.4259,143.56,143.49,6.9688]
[1724315781073,10.46,143.56,143.5,6.9685]
[1724315781277,1.74177052,143.55,143.5,6.9685]
[1724315791484,1.7417696,143.56,143.5,6.9685]
[1724315792800,1.7417696,143.56,143.51,6.968]
[1724315793101,6.9641,143.6,143.52,11.97874042]
[1724315793278,6.9641,143.6,143.54,10.46]
[1724315793478,8.70550516,143.6,143.54,10.46]
[1724315794295,6.9642,143.59,143.54,10.46]
[1724315795384,8.70530516,143.6,143.54,10.46]
[1724315795608,8.70530516,143.6,143.54,17.4265]
[1724315795980,8.70530516,143.6,143.53,6.967]
[1724315798508,8.70530516,143.6,143.53,23.0994]
[1724315798909,6.9643,143.59,143.53,23.0994]
[1724315799702,8.70530516,143.6,143.53,23.0994]
[1724315800713,8.70530516,143.6,143.53,16.1324]
[1724315800882,8.70530516,143.6,143.54,6.9665]
[1724315803006,8.70530516,143.6,143.55,10.46]
[1724315803212,6.9634,143.61,143.55,17.4261]
[1724315803611,8.70321962,143.64,143.57,6.9649]
[1724315803913,16.3342,143.65,143.58,1.39274248]
[1724315804294,6.9621,143.64,143.57,17.4251]
[1724315805718,6.9623,143.63,143.57,17.4251]
[1724315806207,6.962,143.64,143.58,24.058385]
[1724315806597,8.70283475,143.64,143.58,22.6657]
[1724315807090,8.70283475,143.64,143.58,15.7011]
[1724315807511,6.962,143.64,143.58,15.7011]
[1724315809026,6.962,143.64,143.58,22.6658]
[1724315812006,6.9624,143.63,143.58,15.7011]
[1724315812321,8.70323658,143.63,143.58,15.7011]
[1724315813802,13.48914775,143.69,143.59,18.17846874]
[1724315814005,10.46,143.68,143.59,18.17846874]
[1724315814202,1.74059286,143.67,143.59,16.7858]
[1724315814711,10.46,143.68,143.6,1.39247408]
[1724315815219,6.9609,143.66,143.6,6.9635]
[1724315815636,8.70189221,143.65,143.59,23.7499]
[1724315815817,8.70189221,143.65,143.59,13.2899]
[1724315817712,1.74059221,143.65,143.59,13.2899]
[1724315818029,1.7406296,143.65,143.6,10.46]
[1724315818221,1.7406296,143.65,143.6,17.4237]
[1724315820033,6.961,143.66,143.6,17.4237]
[1724315820034,8.70167571,143.66,143.6,17.4237]
[1724315820232,6.961,143.66,143.6,17.4237]
[1724315820413,6.9604,143.67,143.6,10.46]
[1724315820613,6.9604,143.67,143.6,18.81595242]
[1724315821230,1.74058803,143.66,143.6,17.4235]
[1724315822733,6.9604,143.67,143.62,10.46]
[1724315824224,6.9599,143.68,143.62,17.4227]
[1724315824610,1.74040495,143.67,143.62,17.4227]
[1724315825119,8.69989774,143.69,143.64,10.46]
[1724315825319,42.9819793,143.73,143.64,17.4217]
[1724315825320,6.9586,143.71,143.64,17.4217]
[1724315825513,21.74009256,143.7,143.66,10.46]
[1724315825709,8.69899256,143.7,143.66,10.46]
[1724315826629,8.69899256,143.7,143.64,17.4217]
[1724315827211,8.69899256,143.7,143.64,10.46]
[1724315828829,8.69899256,143.7,143.63,6.9621]
[1724315830245,8.69899256,143.7,143.64,10.46]
[1724315830416,6.9589,143.7,143.64,17.4218]
[1724315830617,8.69898413,143.7,143.64,17.4218]
[1724315831443,6.9589,143.7,143.64,17.4218]
[1724315833031,1.74001063,143.69,143.64,17.4218]
[1724315834750,1.74001063,143.69,143.64,10.46]
[1724315835555,8.69941063,143.69,143.62,23.8398]
[1724315836435,1.74001063,143.69,143.61,15.7075]
[1724315836633,6.9607,143.67,143.61,15.7075]
[1724315836839,1.74058747,143.67,143.61,22.6708]
[1724315837026,1.74040698,143.67,143.61,22.6708]
[1724315837750,6.9602,143.68,143.61,22.6708]